{"text_format":"3","workbook":"xlsx","n_sheets":3,"sheets":["Schema","Inmatning","Namnsökning"],"not_rendered":{"defined_names":5},"read":"whole","date_system":"1900"}

{"sheet":"Schema","index":0,"n_rows":23,"n_cols":9,"rows_kept":23,"merged":[[1,1,2,3]]}
[]
[null,"DAGSSCHEMA",{"$nulls":4},"För vecka ","Visa schema för: "]
[{"$nulls":5},{"$f":"WEEKDAY(Vecka,1)","v":3},"2012-07-03","Anders"]
[null,null,{"$f":"$F$3=COLUMN(A$1)","v":false},{"$f":"$F$3=COLUMN(B$1)","v":false},true,false,false,false,false]
[null,null,{"$f":"COLUMN(A$1)-MATCH(TRUE,$C$4:$I$4,0)+Vecka+1","v":"2012-07-02"},"2012-07-03","2012-07-04","2012-07-05","2012-07-06","2012-07-07","2012-07-08"]
[null,"KLOCKSLAG","MÅNDAG","TISDAG","ONSDAG","TORSDAG","FREDAG","LÖRDAG","SÖNDAG"]
[null,"06:00:00",{"$f":"IFERROR(INDEX(tabell_Data[],MATCH(C$5+$B7&Visa_namn,tabell_Data[DATUM OCH TID]&tabell_Data[VEM],0),3),\"\")","v":""},{"$f":"IFERROR(INDEX(tabell_Data[],MATCH(D$5+$B7&Visa_namn,tabell_Data[DATUM OCH TID]&tabell_Data[VEM],0),3),\"\")","v":""},{"$f":"IFERROR(INDEX(tabell_Data[],MATCH(E$5+$B7&Visa_namn,tabell_Data[DATUM OCH TID]&tabell_Data[VEM],0),3),\"\")","v":""},{"$f":"IFERROR(INDEX(tabell_Data[],MATCH(F$5+$B7&Visa_namn,tabell_Data[DATUM OCH TID]&tabell_Data[VEM],0),3),\"\")","v":""},{"$f":"IFERROR(INDEX(tabell_Data[],MATCH(G$5+$B7&Visa_namn,tabell_Data[DATUM OCH TID]&tabell_Data[VEM],0),3),\"\")","v":""},{"$f":"IFERROR(INDEX(tabell_Data[],MATCH(H$5+$B7&Visa_namn,tabell_Data[DATUM OCH TID]&tabell_Data[VEM],0),3),\"\")","v":""},{"$f":"IFERROR(INDEX(tabell_Data[],MATCH(I$5+$B7&Visa_namn,tabell_Data[DATUM OCH TID]&tabell_Data[VEM],0),3),\"\")","v":""}]
[null,"07:00:00",{"$f":"IFERROR(INDEX(tabell_Data[],MATCH(C$5+$B8&Visa_namn,tabell_Data[DATUM OCH TID]&tabell_Data[VEM],0),3),\"\")","v":""},{"$f":"IFERROR(INDEX(tabell_Data[],MATCH(D$5+$B8&Visa_namn,tabell_Data[DATUM OCH TID]&tabell_Data[VEM],0),3),\"\")","v":""},{"$f":"IFERROR(INDEX(tabell_Data[],MATCH(E$5+$B8&Visa_namn,tabell_Data[DATUM OCH TID]&tabell_Data[VEM],0),3),\"\")","v":""},{"$f":"IFERROR(INDEX(tabell_Data[],MATCH(F$5+$B8&Visa_namn,tabell_Data[DATUM OCH TID]&tabell_Data[VEM],0),3),\"\")","v":""},{"$f":"IFERROR(INDEX(tabell_Data[],MATCH(G$5+$B8&Visa_namn,tabell_Data[DATUM OCH TID]&tabell_Data[VEM],0),3),\"\")","v":""},{"$f":"IFERROR(INDEX(tabell_Data[],MATCH(H$5+$B8&Visa_namn,tabell_Data[DATUM OCH TID]&tabell_Data[VEM],0),3),\"\")","v":""},{"$f":"IFERROR(INDEX(tabell_Data[],MATCH(I$5+$B8&Visa_namn,tabell_Data[DATUM OCH TID]&tabell_Data[VEM],0),3),\"\")","v":""}]
[null,"08:00:00",{"$f":"IFERROR(INDEX(tabell_Data[],MATCH(C$5+$B9&Visa_namn,tabell_Data[DATUM OCH TID]&tabell_Data[VEM],0),3),\"\")","v":""},{"$f":"IFERROR(INDEX(tabell_Data[],MATCH(D$5+$B9&Visa_namn,tabell_Data[DATUM OCH TID]&tabell_Data[VEM],0),3),\"\")","v":""},{"$f":"IFERROR(INDEX(tabell_Data[],MATCH(E$5+$B9&Visa_namn,tabell_Data[DATUM OCH TID]&tabell_Data[VEM],0),3),\"\")","v":""},{"$f":"IFERROR(INDEX(tabell_Data[],MATCH(F$5+$B9&Visa_namn,tabell_Data[DATUM OCH TID]&tabell_Data[VEM],0),3),\"\")","v":""},{"$f":"IFERROR(INDEX(tabell_Data[],MATCH(G$5+$B9&Visa_namn,tabell_Data[DATUM OCH TID]&tabell_Data[VEM],0),3),\"\")","v":""},{"$f":"IFERROR(INDEX(tabell_Data[],MATCH(H$5+$B9&Visa_namn,tabell_Data[DATUM OCH TID]&tabell_Data[VEM],0),3),\"\")","v":""},{"$f":"IFERROR(INDEX(tabell_Data[],MATCH(I$5+$B9&Visa_namn,tabell_Data[DATUM OCH TID]&tabell_Data[VEM],0),3),\"\")","v":""}]
[null,"09:00:00",{"$f":"IFERROR(INDEX(tabell_Data[],MATCH(C$5+$B10&Visa_namn,tabell_Data[DATUM OCH TID]&tabell_Data[VEM],0),3),\"\")","v":""},{"$f":"IFERROR(INDEX(tabell_Data[],MATCH(D$5+$B10&Visa_namn,tabell_Data[DATUM OCH TID]&tabell_Data[VEM],0),3),\"\")","v":""},{"$f":"IFERROR(INDEX(tabell_Data[],MATCH(E$5+$B10&Visa_namn,tabell_Data[DATUM OCH TID]&tabell_Data[VEM],0),3),\"\")","v":""},{"$f":"IFERROR(INDEX(tabell_Data[],MATCH(F$5+$B10&Visa_namn,tabell_Data[DATUM OCH TID]&tabell_Data[VEM],0),3),\"\")","v":""},{"$f":"IFERROR(INDEX(tabell_Data[],MATCH(G$5+$B10&Visa_namn,tabell_Data[DATUM OCH TID]&tabell_Data[VEM],0),3),\"\")","v":""},{"$f":"IFERROR(INDEX(tabell_Data[],MATCH(H$5+$B10&Visa_namn,tabell_Data[DATUM OCH TID]&tabell_Data[VEM],0),3),\"\")","v":""},{"$f":"IFERROR(INDEX(tabell_Data[],MATCH(I$5+$B10&Visa_namn,tabell_Data[DATUM OCH TID]&tabell_Data[VEM],0),3),\"\")","v":""}]
[null,"10:00:00",{"$f":"IFERROR(INDEX(tabell_Data[],MATCH(C$5+$B11&Visa_namn,tabell_Data[DATUM OCH TID]&tabell_Data[VEM],0),3),\"\")","v":""},{"$f":"IFERROR(INDEX(tabell_Data[],MATCH(D$5+$B11&Visa_namn,tabell_Data[DATUM OCH TID]&tabell_Data[VEM],0),3),\"\")","v":""},{"$f":"IFERROR(INDEX(tabell_Data[],MATCH(E$5+$B11&Visa_namn,tabell_Data[DATUM OCH TID]&tabell_Data[VEM],0),3),\"\")","v":"Byns marknad"},{"$f":"IFERROR(INDEX(tabell_Data[],MATCH(F$5+$B11&Visa_namn,tabell_Data[DATUM OCH TID]&tabell_Data[VEM],0),3),\"\")","v":""},{"$f":"IFERROR(INDEX(tabell_Data[],MATCH(G$5+$B11&Visa_namn,tabell_Data[DATUM OCH TID]&tabell_Data[VEM],0),3),\"\")","v":""},{"$f":"IFERROR(INDEX(tabell_Data[],MATCH(H$5+$B11&Visa_namn,tabell_Data[DATUM OCH TID]&tabell_Data[VEM],0),3),\"\")","v":""},{"$f":"IFERROR(INDEX(tabell_Data[],MATCH(I$5+$B11&Visa_namn,tabell_Data[DATUM OCH TID]&tabell_Data[VEM],0),3),\"\")","v":""}]
[null,"11:00:00",{"$f":"IFERROR(INDEX(tabell_Data[],MATCH(C$5+$B12&Visa_namn,tabell_Data[DATUM OCH TID]&tabell_Data[VEM],0),3),\"\")","v":""},{"$f":"IFERROR(INDEX(tabell_Data[],MATCH(D$5+$B12&Visa_namn,tabell_Data[DATUM OCH TID]&tabell_Data[VEM],0),3),\"\")","v":""},{"$f":"IFERROR(INDEX(tabell_Data[],MATCH(E$5+$B12&Visa_namn,tabell_Data[DATUM OCH TID]&tabell_Data[VEM],0),3),\"\")","v":""},{"$f":"IFERROR(INDEX(tabell_Data[],MATCH(F$5+$B12&Visa_namn,tabell_Data[DATUM OCH TID]&tabell_Data[VEM],0),3),\"\")","v":""},{"$f":"IFERROR(INDEX(tabell_Data[],MATCH(G$5+$B12&Visa_namn,tabell_Data[DATUM OCH TID]&tabell_Data[VEM],0),3),\"\")","v":"Grilla med familjen"},{"$f":"IFERROR(INDEX(tabell_Data[],MATCH(H$5+$B12&Visa_namn,tabell_Data[DATUM OCH TID]&tabell_Data[VEM],0),3),\"\")","v":""},{"$f":"IFERROR(INDEX(tabell_Data[],MATCH(I$5+$B12&Visa_namn,tabell_Data[DATUM OCH TID]&tabell_Data[VEM],0),3),\"\")","v":""}]
[null,"12:00:00",{"$f":"IFERROR(INDEX(tabell_Data[],MATCH(C$5+$B13&Visa_namn,tabell_Data[DATUM OCH TID]&tabell_Data[VEM],0),3),\"\")","v":""},{"$f":"IFERROR(INDEX(tabell_Data[],MATCH(D$5+$B13&Visa_namn,tabell_Data[DATUM OCH TID]&tabell_Data[VEM],0),3),\"\")","v":""},{"$f":"IFERROR(INDEX(tabell_Data[],MATCH(E$5+$B13&Visa_namn,tabell_Data[DATUM OCH TID]&tabell_Data[VEM],0),3),\"\")","v":""},{"$f":"IFERROR(INDEX(tabell_Data[],MATCH(F$5+$B13&Visa_namn,tabell_Data[DATUM OCH TID]&tabell_Data[VEM],0),3),\"\")","v":""},{"$f":"IFERROR(INDEX(tabell_Data[],MATCH(G$5+$B13&Visa_namn,tabell_Data[DATUM OCH TID]&tabell_Data[VEM],0),3),\"\")","v":""},{"$f":"IFERROR(INDEX(tabell_Data[],MATCH(H$5+$B13&Visa_namn,tabell_Data[DATUM OCH TID]&tabell_Data[VEM],0),3),\"\")","v":""},{"$f":"IFERROR(INDEX(tabell_Data[],MATCH(I$5+$B13&Visa_namn,tabell_Data[DATUM OCH TID]&tabell_Data[VEM],0),3),\"\")","v":""}]
[null,"13:00:00",{"$f":"IFERROR(INDEX(tabell_Data[],MATCH(C$5+$B14&Visa_namn,tabell_Data[DATUM OCH TID]&tabell_Data[VEM],0),3),\"\")","v":""},{"$f":"IFERROR(INDEX(tabell_Data[],MATCH(D$5+$B14&Visa_namn,tabell_Data[DATUM OCH TID]&tabell_Data[VEM],0),3),\"\")","v":""},{"$f":"IFERROR(INDEX(tabell_Data[],MATCH(E$5+$B14&Visa_namn,tabell_Data[DATUM OCH TID]&tabell_Data[VEM],0),3),\"\")","v":""},{"$f":"IFERROR(INDEX(tabell_Data[],MATCH(F$5+$B14&Visa_namn,tabell_Data[DATUM OCH TID]&tabell_Data[VEM],0),3),\"\")","v":""},{"$f":"IFERROR(INDEX(tabell_Data[],MATCH(G$5+$B14&Visa_namn,tabell_Data[DATUM OCH TID]&tabell_Data[VEM],0),3),\"\")","v":""},{"$f":"IFERROR(INDEX(tabell_Data[],MATCH(H$5+$B14&Visa_namn,tabell_Data[DATUM OCH TID]&tabell_Data[VEM],0),3),\"\")","v":""},{"$f":"IFERROR(INDEX(tabell_Data[],MATCH(I$5+$B14&Visa_namn,tabell_Data[DATUM OCH TID]&tabell_Data[VEM],0),3),\"\")","v":""}]
[null,"14:00:00",{"$f":"IFERROR(INDEX(tabell_Data[],MATCH(C$5+$B15&Visa_namn,tabell_Data[DATUM OCH TID]&tabell_Data[VEM],0),3),\"\")","v":""},{"$f":"IFERROR(INDEX(tabell_Data[],MATCH(D$5+$B15&Visa_namn,tabell_Data[DATUM OCH TID]&tabell_Data[VEM],0),3),\"\")","v":""},{"$f":"IFERROR(INDEX(tabell_Data[],MATCH(E$5+$B15&Visa_namn,tabell_Data[DATUM OCH TID]&tabell_Data[VEM],0),3),\"\")","v":""},{"$f":"IFERROR(INDEX(tabell_Data[],MATCH(F$5+$B15&Visa_namn,tabell_Data[DATUM OCH TID]&tabell_Data[VEM],0),3),\"\")","v":""},{"$f":"IFERROR(INDEX(tabell_Data[],MATCH(G$5+$B15&Visa_namn,tabell_Data[DATUM OCH TID]&tabell_Data[VEM],0),3),\"\")","v":""},{"$f":"IFERROR(INDEX(tabell_Data[],MATCH(H$5+$B15&Visa_namn,tabell_Data[DATUM OCH TID]&tabell_Data[VEM],0),3),\"\")","v":""},{"$f":"IFERROR(INDEX(tabell_Data[],MATCH(I$5+$B15&Visa_namn,tabell_Data[DATUM OCH TID]&tabell_Data[VEM],0),3),\"\")","v":""}]
[null,"15:00:00",{"$f":"IFERROR(INDEX(tabell_Data[],MATCH(C$5+$B16&Visa_namn,tabell_Data[DATUM OCH TID]&tabell_Data[VEM],0),3),\"\")","v":""},{"$f":"IFERROR(INDEX(tabell_Data[],MATCH(D$5+$B16&Visa_namn,tabell_Data[DATUM OCH TID]&tabell_Data[VEM],0),3),\"\")","v":""},{"$f":"IFERROR(INDEX(tabell_Data[],MATCH(E$5+$B16&Visa_namn,tabell_Data[DATUM OCH TID]&tabell_Data[VEM],0),3),\"\")","v":""},{"$f":"IFERROR(INDEX(tabell_Data[],MATCH(F$5+$B16&Visa_namn,tabell_Data[DATUM OCH TID]&tabell_Data[VEM],0),3),\"\")","v":""},{"$f":"IFERROR(INDEX(tabell_Data[],MATCH(G$5+$B16&Visa_namn,tabell_Data[DATUM OCH TID]&tabell_Data[VEM],0),3),\"\")","v":""},{"$f":"IFERROR(INDEX(tabell_Data[],MATCH(H$5+$B16&Visa_namn,tabell_Data[DATUM OCH TID]&tabell_Data[VEM],0),3),\"\")","v":""},{"$f":"IFERROR(INDEX(tabell_Data[],MATCH(I$5+$B16&Visa_namn,tabell_Data[DATUM OCH TID]&tabell_Data[VEM],0),3),\"\")","v":""}]
[null,"16:00:00",{"$f":"IFERROR(INDEX(tabell_Data[],MATCH(C$5+$B17&Visa_namn,tabell_Data[DATUM OCH TID]&tabell_Data[VEM],0),3),\"\")","v":""},{"$f":"IFERROR(INDEX(tabell_Data[],MATCH(D$5+$B17&Visa_namn,tabell_Data[DATUM OCH TID]&tabell_Data[VEM],0),3),\"\")","v":"Åka till stugan"},{"$f":"IFERROR(INDEX(tabell_Data[],MATCH(E$5+$B17&Visa_namn,tabell_Data[DATUM OCH TID]&tabell_Data[VEM],0),3),\"\")","v":""},{"$f":"IFERROR(INDEX(tabell_Data[],MATCH(F$5+$B17&Visa_namn,tabell_Data[DATUM OCH TID]&tabell_Data[VEM],0),3),\"\")","v":""},{"$f":"IFERROR(INDEX(tabell_Data[],MATCH(G$5+$B17&Visa_namn,tabell_Data[DATUM OCH TID]&tabell_Data[VEM],0),3),\"\")","v":""},{"$f":"IFERROR(INDEX(tabell_Data[],MATCH(H$5+$B17&Visa_namn,tabell_Data[DATUM OCH TID]&tabell_Data[VEM],0),3),\"\")","v":""},{"$f":"IFERROR(INDEX(tabell_Data[],MATCH(I$5+$B17&Visa_namn,tabell_Data[DATUM OCH TID]&tabell_Data[VEM],0),3),\"\")","v":""}]
[null,"17:00:00",{"$f":"IFERROR(INDEX(tabell_Data[],MATCH(C$5+$B18&Visa_namn,tabell_Data[DATUM OCH TID]&tabell_Data[VEM],0),3),\"\")","v":""},{"$f":"IFERROR(INDEX(tabell_Data[],MATCH(D$5+$B18&Visa_namn,tabell_Data[DATUM OCH TID]&tabell_Data[VEM],0),3),\"\")","v":""},{"$f":"IFERROR(INDEX(tabell_Data[],MATCH(E$5+$B18&Visa_namn,tabell_Data[DATUM OCH TID]&tabell_Data[VEM],0),3),\"\")","v":""},{"$f":"IFERROR(INDEX(tabell_Data[],MATCH(F$5+$B18&Visa_namn,tabell_Data[DATUM OCH TID]&tabell_Data[VEM],0),3),\"\")","v":""},{"$f":"IFERROR(INDEX(tabell_Data[],MATCH(G$5+$B18&Visa_namn,tabell_Data[DATUM OCH TID]&tabell_Data[VEM],0),3),\"\")","v":""},{"$f":"IFERROR(INDEX(tabell_Data[],MATCH(H$5+$B18&Visa_namn,tabell_Data[DATUM OCH TID]&tabell_Data[VEM],0),3),\"\")","v":""},{"$f":"IFERROR(INDEX(tabell_Data[],MATCH(I$5+$B18&Visa_namn,tabell_Data[DATUM OCH TID]&tabell_Data[VEM],0),3),\"\")","v":"Åka hem"}]
[null,"18:00:00",{"$f":"IFERROR(INDEX(tabell_Data[],MATCH(C$5+$B19&Visa_namn,tabell_Data[DATUM OCH TID]&tabell_Data[VEM],0),3),\"\")","v":"Ta medicin"},{"$f":"IFERROR(INDEX(tabell_Data[],MATCH(D$5+$B19&Visa_namn,tabell_Data[DATUM OCH TID]&tabell_Data[VEM],0),3),\"\")","v":""},{"$f":"IFERROR(INDEX(tabell_Data[],MATCH(E$5+$B19&Visa_namn,tabell_Data[DATUM OCH TID]&tabell_Data[VEM],0),3),\"\")","v":""},{"$f":"IFERROR(INDEX(tabell_Data[],MATCH(F$5+$B19&Visa_namn,tabell_Data[DATUM OCH TID]&tabell_Data[VEM],0),3),\"\")","v":""},{"$f":"IFERROR(INDEX(tabell_Data[],MATCH(G$5+$B19&Visa_namn,tabell_Data[DATUM OCH TID]&tabell_Data[VEM],0),3),\"\")","v":""},{"$f":"IFERROR(INDEX(tabell_Data[],MATCH(H$5+$B19&Visa_namn,tabell_Data[DATUM OCH TID]&tabell_Data[VEM],0),3),\"\")","v":""},{"$f":"IFERROR(INDEX(tabell_Data[],MATCH(I$5+$B19&Visa_namn,tabell_Data[DATUM OCH TID]&tabell_Data[VEM],0),3),\"\")","v":""}]
[null,"19:00:00",{"$f":"IFERROR(INDEX(tabell_Data[],MATCH(C$5+$B20&Visa_namn,tabell_Data[DATUM OCH TID]&tabell_Data[VEM],0),3),\"\")","v":""},{"$f":"IFERROR(INDEX(tabell_Data[],MATCH(D$5+$B20&Visa_namn,tabell_Data[DATUM OCH TID]&tabell_Data[VEM],0),3),\"\")","v":""},{"$f":"IFERROR(INDEX(tabell_Data[],MATCH(E$5+$B20&Visa_namn,tabell_Data[DATUM OCH TID]&tabell_Data[VEM],0),3),\"\")","v":""},{"$f":"IFERROR(INDEX(tabell_Data[],MATCH(F$5+$B20&Visa_namn,tabell_Data[DATUM OCH TID]&tabell_Data[VEM],0),3),\"\")","v":""},{"$f":"IFERROR(INDEX(tabell_Data[],MATCH(G$5+$B20&Visa_namn,tabell_Data[DATUM OCH TID]&tabell_Data[VEM],0),3),\"\")","v":""},{"$f":"IFERROR(INDEX(tabell_Data[],MATCH(H$5+$B20&Visa_namn,tabell_Data[DATUM OCH TID]&tabell_Data[VEM],0),3),\"\")","v":""},{"$f":"IFERROR(INDEX(tabell_Data[],MATCH(I$5+$B20&Visa_namn,tabell_Data[DATUM OCH TID]&tabell_Data[VEM],0),3),\"\")","v":""}]
[null,"20:00:00",{"$f":"IFERROR(INDEX(tabell_Data[],MATCH(C$5+$B21&Visa_namn,tabell_Data[DATUM OCH TID]&tabell_Data[VEM],0),3),\"\")","v":"Film med familjen"},{"$f":"IFERROR(INDEX(tabell_Data[],MATCH(D$5+$B21&Visa_namn,tabell_Data[DATUM OCH TID]&tabell_Data[VEM],0),3),\"\")","v":""},{"$f":"IFERROR(INDEX(tabell_Data[],MATCH(E$5+$B21&Visa_namn,tabell_Data[DATUM OCH TID]&tabell_Data[VEM],0),3),\"\")","v":""},{"$f":"IFERROR(INDEX(tabell_Data[],MATCH(F$5+$B21&Visa_namn,tabell_Data[DATUM OCH TID]&tabell_Data[VEM],0),3),\"\")","v":"Fyrverkeriuppvisning"},{"$f":"IFERROR(INDEX(tabell_Data[],MATCH(G$5+$B21&Visa_namn,tabell_Data[DATUM OCH TID]&tabell_Data[VEM],0),3),\"\")","v":""},{"$f":"IFERROR(INDEX(tabell_Data[],MATCH(H$5+$B21&Visa_namn,tabell_Data[DATUM OCH TID]&tabell_Data[VEM],0),3),\"\")","v":""},{"$f":"IFERROR(INDEX(tabell_Data[],MATCH(I$5+$B21&Visa_namn,tabell_Data[DATUM OCH TID]&tabell_Data[VEM],0),3),\"\")","v":""}]
[null,"21:00:00",{"$f":"IFERROR(INDEX(tabell_Data[],MATCH(C$5+$B22&Visa_namn,tabell_Data[DATUM OCH TID]&tabell_Data[VEM],0),3),\"\")","v":""},{"$f":"IFERROR(INDEX(tabell_Data[],MATCH(D$5+$B22&Visa_namn,tabell_Data[DATUM OCH TID]&tabell_Data[VEM],0),3),\"\")","v":""},{"$f":"IFERROR(INDEX(tabell_Data[],MATCH(E$5+$B22&Visa_namn,tabell_Data[DATUM OCH TID]&tabell_Data[VEM],0),3),\"\")","v":""},{"$f":"IFERROR(INDEX(tabell_Data[],MATCH(F$5+$B22&Visa_namn,tabell_Data[DATUM OCH TID]&tabell_Data[VEM],0),3),\"\")","v":""},{"$f":"IFERROR(INDEX(tabell_Data[],MATCH(G$5+$B22&Visa_namn,tabell_Data[DATUM OCH TID]&tabell_Data[VEM],0),3),\"\")","v":""},{"$f":"IFERROR(INDEX(tabell_Data[],MATCH(H$5+$B22&Visa_namn,tabell_Data[DATUM OCH TID]&tabell_Data[VEM],0),3),\"\")","v":""},{"$f":"IFERROR(INDEX(tabell_Data[],MATCH(I$5+$B22&Visa_namn,tabell_Data[DATUM OCH TID]&tabell_Data[VEM],0),3),\"\")","v":""}]
[null,"22:00:00",{"$f":"IFERROR(INDEX(tabell_Data[],MATCH(C$5+$B23&Visa_namn,tabell_Data[DATUM OCH TID]&tabell_Data[VEM],0),3),\"\")","v":""},{"$f":"IFERROR(INDEX(tabell_Data[],MATCH(D$5+$B23&Visa_namn,tabell_Data[DATUM OCH TID]&tabell_Data[VEM],0),3),\"\")","v":""},{"$f":"IFERROR(INDEX(tabell_Data[],MATCH(E$5+$B23&Visa_namn,tabell_Data[DATUM OCH TID]&tabell_Data[VEM],0),3),\"\")","v":""},{"$f":"IFERROR(INDEX(tabell_Data[],MATCH(F$5+$B23&Visa_namn,tabell_Data[DATUM OCH TID]&tabell_Data[VEM],0),3),\"\")","v":""},{"$f":"IFERROR(INDEX(tabell_Data[],MATCH(G$5+$B23&Visa_namn,tabell_Data[DATUM OCH TID]&tabell_Data[VEM],0),3),\"\")","v":""},{"$f":"IFERROR(INDEX(tabell_Data[],MATCH(H$5+$B23&Visa_namn,tabell_Data[DATUM OCH TID]&tabell_Data[VEM],0),3),\"\")","v":""},{"$f":"IFERROR(INDEX(tabell_Data[],MATCH(I$5+$B23&Visa_namn,tabell_Data[DATUM OCH TID]&tabell_Data[VEM],0),3),\"\")","v":""}]

{"sheet":"Inmatning","index":1,"n_rows":14,"n_cols":4,"rows_kept":14}
[null,"INMATNING"]
[]
[null,"DATUM OCH TID","VEM","AKTIVITET"]
[null,"2012-07-02T08:00:00","Anna","Läkarbesök"]
[null,"2012-07-02T18:00:00","Anders","Ta medicin"]
[null,"2012-07-02T18:30:00","Anders","Middag med Anna"]
[null,"2012-07-02T20:00:00","Anders","Film med familjen"]
[null,"2012-07-03T16:00:00","Anders","Åka till stugan"]
[null,"2012-07-04T10:00:00","Anders","Byns marknad"]
[null,"2012-07-05T20:00:00","Anders","Fyrverkeriuppvisning"]
[null,"2012-07-06T11:00:00","Anders","Grilla med familjen"]
[null,"2012-07-07","Anders","Föreningsutflykt"]
[null,"2012-07-08T17:00:00","Anders","Åka hem"]
[null,"2012-07-02T10:00:00","Anna","Pianolektioner"]

{"sheet":"Namnsökning","index":2,"n_rows":132,"n_cols":2,"rows_kept":132,"hidden":true,"merged":[[0,0,0,1]]}
["I det här kalkylbladet fylls den nedrullningsbara listan med namn i schemabladet i cell H3. Ändringar i kalkylbladet kan orsaka fel."]
["UNIKT NAMN","RADNUMMER"]
[{"$f":"IFERROR(INDEX(Vem_fält,MATCH(0,COUNTIF($A$2:A2,Vem_fält),0)),\"\")","v":"Anna"},{"$f":"IF(A3=\"\",\"\",ROW())","v":3}]
[{"$f":"IFERROR(INDEX(Vem_fält,MATCH(0,COUNTIF($A$2:A3,Vem_fält),0)),\"\")","v":"Anders"},{"$f":"IF(A4=\"\",\"\",ROW())","v":4}]
[{"$f":"IFERROR(INDEX(Vem_fält,MATCH(0,COUNTIF($A$2:A4,Vem_fält),0)),\"\")","v":""},""]
[{"$f":"IFERROR(INDEX(Vem_fält,MATCH(0,COUNTIF($A$2:A5,Vem_fält),0)),\"\")","v":""},""]
[{"$f":"IFERROR(INDEX(Vem_fält,MATCH(0,COUNTIF($A$2:A6,Vem_fält),0)),\"\")","v":""},""]
[{"$f":"IFERROR(INDEX(Vem_fält,MATCH(0,COUNTIF($A$2:A7,Vem_fält),0)),\"\")","v":""},""]
[{"$f":"IFERROR(INDEX(Vem_fält,MATCH(0,COUNTIF($A$2:A8,Vem_fält),0)),\"\")","v":""},""]
[{"$f":"IFERROR(INDEX(Vem_fält,MATCH(0,COUNTIF($A$2:A9,Vem_fält),0)),\"\")","v":""},""]
[{"$f":"IFERROR(INDEX(Vem_fält,MATCH(0,COUNTIF($A$2:A10,Vem_fält),0)),\"\")","v":""},""]
[{"$f":"IFERROR(INDEX(Vem_fält,MATCH(0,COUNTIF($A$2:A11,Vem_fält),0)),\"\")","v":""},""]
[{"$f":"IFERROR(INDEX(Vem_fält,MATCH(0,COUNTIF($A$2:A12,Vem_fält),0)),\"\")","v":""},""]
[{"$f":"IFERROR(INDEX(Vem_fält,MATCH(0,COUNTIF($A$2:A13,Vem_fält),0)),\"\")","v":""},""]
[{"$f":"IFERROR(INDEX(Vem_fält,MATCH(0,COUNTIF($A$2:A14,Vem_fält),0)),\"\")","v":""},""]
[{"$f":"IFERROR(INDEX(Vem_fält,MATCH(0,COUNTIF($A$2:A15,Vem_fält),0)),\"\")","v":""},""]
[{"$f":"IFERROR(INDEX(Vem_fält,MATCH(0,COUNTIF($A$2:A16,Vem_fält),0)),\"\")","v":""},""]
[{"$f":"IFERROR(INDEX(Vem_fält,MATCH(0,COUNTIF($A$2:A17,Vem_fält),0)),\"\")","v":""},""]
[{"$f":"IFERROR(INDEX(Vem_fält,MATCH(0,COUNTIF($A$2:A18,Vem_fält),0)),\"\")","v":""},""]
[{"$f":"IFERROR(INDEX(Vem_fält,MATCH(0,COUNTIF($A$2:A19,Vem_fält),0)),\"\")","v":""},""]
[{"$f":"IFERROR(INDEX(Vem_fält,MATCH(0,COUNTIF($A$2:A20,Vem_fält),0)),\"\")","v":""},""]
[{"$f":"IFERROR(INDEX(Vem_fält,MATCH(0,COUNTIF($A$2:A21,Vem_fält),0)),\"\")","v":""},""]
[{"$f":"IFERROR(INDEX(Vem_fält,MATCH(0,COUNTIF($A$2:A22,Vem_fält),0)),\"\")","v":""},""]
[{"$f":"IFERROR(INDEX(Vem_fält,MATCH(0,COUNTIF($A$2:A23,Vem_fält),0)),\"\")","v":""},""]
[{"$f":"IFERROR(INDEX(Vem_fält,MATCH(0,COUNTIF($A$2:A24,Vem_fält),0)),\"\")","v":""},""]
[{"$f":"IFERROR(INDEX(Vem_fält,MATCH(0,COUNTIF($A$2:A25,Vem_fält),0)),\"\")","v":""},""]
[{"$f":"IFERROR(INDEX(Vem_fält,MATCH(0,COUNTIF($A$2:A26,Vem_fält),0)),\"\")","v":""},""]
[{"$f":"IFERROR(INDEX(Vem_fält,MATCH(0,COUNTIF($A$2:A27,Vem_fält),0)),\"\")","v":""},""]
[{"$f":"IFERROR(INDEX(Vem_fält,MATCH(0,COUNTIF($A$2:A28,Vem_fält),0)),\"\")","v":""},""]
[{"$f":"IFERROR(INDEX(Vem_fält,MATCH(0,COUNTIF($A$2:A29,Vem_fält),0)),\"\")","v":""},""]
[{"$f":"IFERROR(INDEX(Vem_fält,MATCH(0,COUNTIF($A$2:A30,Vem_fält),0)),\"\")","v":""},""]
[{"$f":"IFERROR(INDEX(Vem_fält,MATCH(0,COUNTIF($A$2:A31,Vem_fält),0)),\"\")","v":""},""]
[{"$f":"IFERROR(INDEX(Vem_fält,MATCH(0,COUNTIF($A$2:A32,Vem_fält),0)),\"\")","v":""},""]
[{"$f":"IFERROR(INDEX(Vem_fält,MATCH(0,COUNTIF($A$2:A33,Vem_fält),0)),\"\")","v":""},""]
[{"$f":"IFERROR(INDEX(Vem_fält,MATCH(0,COUNTIF($A$2:A34,Vem_fält),0)),\"\")","v":""},""]
[{"$f":"IFERROR(INDEX(Vem_fält,MATCH(0,COUNTIF($A$2:A35,Vem_fält),0)),\"\")","v":""},""]
[{"$f":"IFERROR(INDEX(Vem_fält,MATCH(0,COUNTIF($A$2:A36,Vem_fält),0)),\"\")","v":""},""]
[{"$f":"IFERROR(INDEX(Vem_fält,MATCH(0,COUNTIF($A$2:A37,Vem_fält),0)),\"\")","v":""},""]
[{"$f":"IFERROR(INDEX(Vem_fält,MATCH(0,COUNTIF($A$2:A38,Vem_fält),0)),\"\")","v":""},""]
[{"$f":"IFERROR(INDEX(Vem_fält,MATCH(0,COUNTIF($A$2:A39,Vem_fält),0)),\"\")","v":""},""]
[{"$f":"IFERROR(INDEX(Vem_fält,MATCH(0,COUNTIF($A$2:A40,Vem_fält),0)),\"\")","v":""},""]
[{"$f":"IFERROR(INDEX(Vem_fält,MATCH(0,COUNTIF($A$2:A41,Vem_fält),0)),\"\")","v":""},""]
[{"$f":"IFERROR(INDEX(Vem_fält,MATCH(0,COUNTIF($A$2:A42,Vem_fält),0)),\"\")","v":""},""]
[{"$f":"IFERROR(INDEX(Vem_fält,MATCH(0,COUNTIF($A$2:A43,Vem_fält),0)),\"\")","v":""},""]
[{"$f":"IFERROR(INDEX(Vem_fält,MATCH(0,COUNTIF($A$2:A44,Vem_fält),0)),\"\")","v":""},""]
[{"$f":"IFERROR(INDEX(Vem_fält,MATCH(0,COUNTIF($A$2:A45,Vem_fält),0)),\"\")","v":""},""]
[{"$f":"IFERROR(INDEX(Vem_fält,MATCH(0,COUNTIF($A$2:A46,Vem_fält),0)),\"\")","v":""},""]
[{"$f":"IFERROR(INDEX(Vem_fält,MATCH(0,COUNTIF($A$2:A47,Vem_fält),0)),\"\")","v":""},""]
[{"$f":"IFERROR(INDEX(Vem_fält,MATCH(0,COUNTIF($A$2:A48,Vem_fält),0)),\"\")","v":""},""]
[{"$f":"IFERROR(INDEX(Vem_fält,MATCH(0,COUNTIF($A$2:A49,Vem_fält),0)),\"\")","v":""},""]
[{"$f":"IFERROR(INDEX(Vem_fält,MATCH(0,COUNTIF($A$2:A50,Vem_fält),0)),\"\")","v":""},""]
[{"$f":"IFERROR(INDEX(Vem_fält,MATCH(0,COUNTIF($A$2:A51,Vem_fält),0)),\"\")","v":""},""]
[{"$f":"IFERROR(INDEX(Vem_fält,MATCH(0,COUNTIF($A$2:A52,Vem_fält),0)),\"\")","v":""},""]
[{"$f":"IFERROR(INDEX(Vem_fält,MATCH(0,COUNTIF($A$2:A53,Vem_fält),0)),\"\")","v":""},""]
[{"$f":"IFERROR(INDEX(Vem_fält,MATCH(0,COUNTIF($A$2:A54,Vem_fält),0)),\"\")","v":""},""]
[{"$f":"IFERROR(INDEX(Vem_fält,MATCH(0,COUNTIF($A$2:A55,Vem_fält),0)),\"\")","v":""},""]
[{"$f":"IFERROR(INDEX(Vem_fält,MATCH(0,COUNTIF($A$2:A56,Vem_fält),0)),\"\")","v":""},""]
[{"$f":"IFERROR(INDEX(Vem_fält,MATCH(0,COUNTIF($A$2:A57,Vem_fält),0)),\"\")","v":""},""]
[{"$f":"IFERROR(INDEX(Vem_fält,MATCH(0,COUNTIF($A$2:A58,Vem_fält),0)),\"\")","v":""},""]
[{"$f":"IFERROR(INDEX(Vem_fält,MATCH(0,COUNTIF($A$2:A59,Vem_fält),0)),\"\")","v":""},""]
[{"$f":"IFERROR(INDEX(Vem_fält,MATCH(0,COUNTIF($A$2:A60,Vem_fält),0)),\"\")","v":""},""]
[{"$f":"IFERROR(INDEX(Vem_fält,MATCH(0,COUNTIF($A$2:A61,Vem_fält),0)),\"\")","v":""},""]
[{"$f":"IFERROR(INDEX(Vem_fält,MATCH(0,COUNTIF($A$2:A62,Vem_fält),0)),\"\")","v":""},""]
[{"$f":"IFERROR(INDEX(Vem_fält,MATCH(0,COUNTIF($A$2:A63,Vem_fält),0)),\"\")","v":""},""]
[{"$f":"IFERROR(INDEX(Vem_fält,MATCH(0,COUNTIF($A$2:A64,Vem_fält),0)),\"\")","v":""},""]
[{"$f":"IFERROR(INDEX(Vem_fält,MATCH(0,COUNTIF($A$2:A65,Vem_fält),0)),\"\")","v":""},""]
[{"$f":"IFERROR(INDEX(Vem_fält,MATCH(0,COUNTIF($A$2:A66,Vem_fält),0)),\"\")","v":""},""]
[{"$f":"IFERROR(INDEX(Vem_fält,MATCH(0,COUNTIF($A$2:A67,Vem_fält),0)),\"\")","v":""},{"$f":"IF(A68=\"\",\"\",ROW())","v":""}]
[{"$f":"IFERROR(INDEX(Vem_fält,MATCH(0,COUNTIF($A$2:A68,Vem_fält),0)),\"\")","v":""},""]
[{"$f":"IFERROR(INDEX(Vem_fält,MATCH(0,COUNTIF($A$2:A69,Vem_fält),0)),\"\")","v":""},""]
[{"$f":"IFERROR(INDEX(Vem_fält,MATCH(0,COUNTIF($A$2:A70,Vem_fält),0)),\"\")","v":""},""]
[{"$f":"IFERROR(INDEX(Vem_fält,MATCH(0,COUNTIF($A$2:A71,Vem_fält),0)),\"\")","v":""},""]
[{"$f":"IFERROR(INDEX(Vem_fält,MATCH(0,COUNTIF($A$2:A72,Vem_fält),0)),\"\")","v":""},""]
[{"$f":"IFERROR(INDEX(Vem_fält,MATCH(0,COUNTIF($A$2:A73,Vem_fält),0)),\"\")","v":""},""]
[{"$f":"IFERROR(INDEX(Vem_fält,MATCH(0,COUNTIF($A$2:A74,Vem_fält),0)),\"\")","v":""},""]
[{"$f":"IFERROR(INDEX(Vem_fält,MATCH(0,COUNTIF($A$2:A75,Vem_fält),0)),\"\")","v":""},""]
[{"$f":"IFERROR(INDEX(Vem_fält,MATCH(0,COUNTIF($A$2:A76,Vem_fält),0)),\"\")","v":""},""]
[{"$f":"IFERROR(INDEX(Vem_fält,MATCH(0,COUNTIF($A$2:A77,Vem_fält),0)),\"\")","v":""},""]
[{"$f":"IFERROR(INDEX(Vem_fält,MATCH(0,COUNTIF($A$2:A78,Vem_fält),0)),\"\")","v":""},""]
[{"$f":"IFERROR(INDEX(Vem_fält,MATCH(0,COUNTIF($A$2:A79,Vem_fält),0)),\"\")","v":""},""]
[{"$f":"IFERROR(INDEX(Vem_fält,MATCH(0,COUNTIF($A$2:A80,Vem_fält),0)),\"\")","v":""},""]
[{"$f":"IFERROR(INDEX(Vem_fält,MATCH(0,COUNTIF($A$2:A81,Vem_fält),0)),\"\")","v":""},""]
[{"$f":"IFERROR(INDEX(Vem_fält,MATCH(0,COUNTIF($A$2:A82,Vem_fält),0)),\"\")","v":""},""]
[{"$f":"IFERROR(INDEX(Vem_fält,MATCH(0,COUNTIF($A$2:A83,Vem_fält),0)),\"\")","v":""},""]
[{"$f":"IFERROR(INDEX(Vem_fält,MATCH(0,COUNTIF($A$2:A84,Vem_fält),0)),\"\")","v":""},""]
[{"$f":"IFERROR(INDEX(Vem_fält,MATCH(0,COUNTIF($A$2:A85,Vem_fält),0)),\"\")","v":""},""]
[{"$f":"IFERROR(INDEX(Vem_fält,MATCH(0,COUNTIF($A$2:A86,Vem_fält),0)),\"\")","v":""},""]
[{"$f":"IFERROR(INDEX(Vem_fält,MATCH(0,COUNTIF($A$2:A87,Vem_fält),0)),\"\")","v":""},""]
[{"$f":"IFERROR(INDEX(Vem_fält,MATCH(0,COUNTIF($A$2:A88,Vem_fält),0)),\"\")","v":""},""]
[{"$f":"IFERROR(INDEX(Vem_fält,MATCH(0,COUNTIF($A$2:A89,Vem_fält),0)),\"\")","v":""},""]
[{"$f":"IFERROR(INDEX(Vem_fält,MATCH(0,COUNTIF($A$2:A90,Vem_fält),0)),\"\")","v":""},""]
[{"$f":"IFERROR(INDEX(Vem_fält,MATCH(0,COUNTIF($A$2:A91,Vem_fält),0)),\"\")","v":""},""]
[{"$f":"IFERROR(INDEX(Vem_fält,MATCH(0,COUNTIF($A$2:A92,Vem_fält),0)),\"\")","v":""},""]
[{"$f":"IFERROR(INDEX(Vem_fält,MATCH(0,COUNTIF($A$2:A93,Vem_fält),0)),\"\")","v":""},""]
[{"$f":"IFERROR(INDEX(Vem_fält,MATCH(0,COUNTIF($A$2:A94,Vem_fält),0)),\"\")","v":""},""]
[{"$f":"IFERROR(INDEX(Vem_fält,MATCH(0,COUNTIF($A$2:A95,Vem_fält),0)),\"\")","v":""},""]
[{"$f":"IFERROR(INDEX(Vem_fält,MATCH(0,COUNTIF($A$2:A96,Vem_fält),0)),\"\")","v":""},""]
[{"$f":"IFERROR(INDEX(Vem_fält,MATCH(0,COUNTIF($A$2:A97,Vem_fält),0)),\"\")","v":""},""]
[{"$f":"IFERROR(INDEX(Vem_fält,MATCH(0,COUNTIF($A$2:A98,Vem_fält),0)),\"\")","v":""},""]
[{"$f":"IFERROR(INDEX(Vem_fält,MATCH(0,COUNTIF($A$2:A99,Vem_fält),0)),\"\")","v":""},""]
[{"$f":"IFERROR(INDEX(Vem_fält,MATCH(0,COUNTIF($A$2:A100,Vem_fält),0)),\"\")","v":""},""]
[{"$f":"IFERROR(INDEX(Vem_fält,MATCH(0,COUNTIF($A$2:A101,Vem_fält),0)),\"\")","v":""},""]
[{"$f":"IFERROR(INDEX(Vem_fält,MATCH(0,COUNTIF($A$2:A102,Vem_fält),0)),\"\")","v":""},""]
[{"$f":"IFERROR(INDEX(Vem_fält,MATCH(0,COUNTIF($A$2:A103,Vem_fält),0)),\"\")","v":""},""]
[{"$f":"IFERROR(INDEX(Vem_fält,MATCH(0,COUNTIF($A$2:A104,Vem_fält),0)),\"\")","v":""},""]
[{"$f":"IFERROR(INDEX(Vem_fält,MATCH(0,COUNTIF($A$2:A105,Vem_fält),0)),\"\")","v":""},""]
[{"$f":"IFERROR(INDEX(Vem_fält,MATCH(0,COUNTIF($A$2:A106,Vem_fält),0)),\"\")","v":""},""]
[{"$f":"IFERROR(INDEX(Vem_fält,MATCH(0,COUNTIF($A$2:A107,Vem_fält),0)),\"\")","v":""},""]
[{"$f":"IFERROR(INDEX(Vem_fält,MATCH(0,COUNTIF($A$2:A108,Vem_fält),0)),\"\")","v":""},""]
[{"$f":"IFERROR(INDEX(Vem_fält,MATCH(0,COUNTIF($A$2:A109,Vem_fält),0)),\"\")","v":""},""]
[{"$f":"IFERROR(INDEX(Vem_fält,MATCH(0,COUNTIF($A$2:A110,Vem_fält),0)),\"\")","v":""},""]
[{"$f":"IFERROR(INDEX(Vem_fält,MATCH(0,COUNTIF($A$2:A111,Vem_fält),0)),\"\")","v":""},""]
[{"$f":"IFERROR(INDEX(Vem_fält,MATCH(0,COUNTIF($A$2:A112,Vem_fält),0)),\"\")","v":""},""]
[{"$f":"IFERROR(INDEX(Vem_fält,MATCH(0,COUNTIF($A$2:A113,Vem_fält),0)),\"\")","v":""},""]
[{"$f":"IFERROR(INDEX(Vem_fält,MATCH(0,COUNTIF($A$2:A114,Vem_fält),0)),\"\")","v":""},""]
[{"$f":"IFERROR(INDEX(Vem_fält,MATCH(0,COUNTIF($A$2:A115,Vem_fält),0)),\"\")","v":""},""]
[{"$f":"IFERROR(INDEX(Vem_fält,MATCH(0,COUNTIF($A$2:A116,Vem_fält),0)),\"\")","v":""},""]
[{"$f":"IFERROR(INDEX(Vem_fält,MATCH(0,COUNTIF($A$2:A117,Vem_fält),0)),\"\")","v":""},""]
[{"$f":"IFERROR(INDEX(Vem_fält,MATCH(0,COUNTIF($A$2:A118,Vem_fält),0)),\"\")","v":""},""]
[{"$f":"IFERROR(INDEX(Vem_fält,MATCH(0,COUNTIF($A$2:A119,Vem_fält),0)),\"\")","v":""},""]
[{"$f":"IFERROR(INDEX(Vem_fält,MATCH(0,COUNTIF($A$2:A120,Vem_fält),0)),\"\")","v":""},""]
[{"$f":"IFERROR(INDEX(Vem_fält,MATCH(0,COUNTIF($A$2:A121,Vem_fält),0)),\"\")","v":""},""]
[{"$f":"IFERROR(INDEX(Vem_fält,MATCH(0,COUNTIF($A$2:A122,Vem_fält),0)),\"\")","v":""},""]
[{"$f":"IFERROR(INDEX(Vem_fält,MATCH(0,COUNTIF($A$2:A123,Vem_fält),0)),\"\")","v":""},""]
[{"$f":"IFERROR(INDEX(Vem_fält,MATCH(0,COUNTIF($A$2:A124,Vem_fält),0)),\"\")","v":""},""]
[{"$f":"IFERROR(INDEX(Vem_fält,MATCH(0,COUNTIF($A$2:A125,Vem_fält),0)),\"\")","v":""},""]
[{"$f":"IFERROR(INDEX(Vem_fält,MATCH(0,COUNTIF($A$2:A126,Vem_fält),0)),\"\")","v":""},""]
[{"$f":"IFERROR(INDEX(Vem_fält,MATCH(0,COUNTIF($A$2:A127,Vem_fält),0)),\"\")","v":""},""]
[{"$f":"IFERROR(INDEX(Vem_fält,MATCH(0,COUNTIF($A$2:A128,Vem_fält),0)),\"\")","v":""},""]
[{"$f":"IFERROR(INDEX(Vem_fält,MATCH(0,COUNTIF($A$2:A129,Vem_fält),0)),\"\")","v":""},""]
[{"$f":"IFERROR(INDEX(Vem_fält,MATCH(0,COUNTIF($A$2:A130,Vem_fält),0)),\"\")","v":""},""]
[{"$f":"IFERROR(INDEX(Vem_fält,MATCH(0,COUNTIF($A$2:A131,Vem_fält),0)),\"\")","v":""},{"$f":"IF(A132=\"\",\"\",ROW())","v":""}]